{"text_format":"1","workbook":"xlsx","n_sheets":3,"sheets":["Listing de question","Affichage","Feuil5"],"not_rendered":{"charts":0,"images":0,"macros":1,"external_links":0,"defined_names":2,"comments":0,"pivot_tables":0},"unopened":[],"bounds":{"document_bytes":16777216,"sheet_cells":100000,"rows_first":2000,"rows_last":500,"rows_between":2000,"halvings":0,"cell_chars":16384,"cell_head_chars":4096},"cells_cut":0,"cells_raw":0,"read":"whole","date_system":"1900"}

{"sheet":"Listing de question","index":0,"n_rows":156,"n_cols":9,"rows_kept":156,"cut":false,"hidden":false,"merged":[]}
[]
[1,{"$f":"RAND()","v":7.4395829889530085E-2},"F","La longueur maximale des cages feeder est fixée à : ","7 cm","12 cm","10 cm",null,{"$f":"IF(H2=1,1,0)","v":0}]
[2,{"$f":"RAND()","v":0.18078592374923796},"F","Dans le championnat de France des clubs Feeder les équipes (hors remplaçant) sont composées de","4 pêcheurs","5 pêcheurs","6 pêcheurs",null,{"$f":"IF(H3=2,1,0)","v":0}]
[3,{"$f":"RAND()","v":0.5791040309852814},"F","La pêche au feeder peut se dérouler sans moulinet sur la canne",true,false,null,null,{"$f":"IF(H4=2,1,0)","v":0}]
[4,{"$f":"RAND()","v":0.97615391449800815},"F","La distance minimale entre deux pêcheurs dans un championnat feeder est ","10 m","15 m","30 m",null,{"$f":"IF(H5=2,1,0)","v":0}]
[5,{"$f":"RAND()","v":0.19383825673715982},"F","Pour la pêche exclusivement au feeder la distance minimumde pêche par rapport à la berge est fixée à","AUCUNE","8 m","6 m",null,{"$f":"IF(H6=1,1,0)","v":0}]
[6,{"$f":"RAND()","v":0.45912060886113004},"F","Pour la pêche exclusivement au feeder il est autorisé de lancer des boules de rappel à la fronde",true,false,null,null,{"$f":"IF(H7=2,1,0)","v":0}]
[7,{"$f":"RAND()","v":0.78473450718513593},"F","Dans une épreuve de pêche au Feeder, pour gagner du temps un pêcheur peut remplir une cage pendant qu'une autre est à l'eau",true,false,null,null,{"$f":"IF(H8=2,1,0)","v":0}]
[8,{"$f":"RAND()","v":0.2057871471880367},"F","Pour la pêche exclusivement au feeder il est possible de procéder au sondage de sa place à l'aide d'un flotteur",true,false,null,null,{"$f":"IF(H9=2,1,0)","v":0}]
[9,{"$f":"RAND()","v":0.33047259426063647},"F","Pour la pêche exclusivement au feeder un repère flottant est autorisé pour l'amorçage",true,false,null,null,{"$f":"IF(H10=2,1,0)","v":0}]
[10,{"$f":"RAND()","v":0.45571582583195269},"F","Pour la pêche exclusivement au feeder il est interdit de mettre un hameçon sur la ligne pendant la phase d'amorçage",true,false,null,null,{"$f":"IF(H11=1,1,0)","v":0}]
[11,{"$f":"RAND()","v":0.16245827963730308},"F","La longueur maximale des cannes pour la pêche au feeder est de ","4,60 m","10 m","8 m",null,{"$f":"IF(H12=1,1,0)","v":0}]
[]
[12,{"$f":"RAND()","v":0.87699903537375035},"G","Dans une épreuve nationale de pêche au Feeder, le plomb d'Arlesay est autorisé",true,false,null,null,{"$f":"IF(H14=1,1,0)","v":0}]
[13,{"$f":"RAND()","v":0.16349013981822624},"G","Dans le cas de très petits poissons si la balance n'affiche rien il faut indiquer le nombre de poissons",true,false,null,null,{"$f":"IF(H15=1,1,0)","v":0}]
[14,{"$f":"RAND()","v":0.92592219996684766},"G","Pour une grande épreuve en individuel, il est possible de procéder à un tirage aléatoire à l'aide d'un logiciel adapté",true,false,null,null,{"$f":"IF(H16=1,1,0)","v":0}]
[15,{"$f":"RAND()","v":0.61728943243470846},"G","Le diamètre minimum des bourriches est","20 cm","40 cm","60 cm",null,{"$f":"IF(H17=2,1,0)","v":0}]
[16,{"$f":"RAND()","v":0.21944266254849876},"G","L'utilisation du batteur électrique est autorisée après les contrôles d'amorce",true,false,null,null,{"$f":"IF(H18=2,1,0)","v":0}]
[17,{"$f":"RAND()","v":0.36022552890790271},"G","Le pêcheur à le droit de procéder au nettoyage de sa place en pénétrant dans l'eau jusqu'au signal d'amorçage",true,false,null,null,{"$f":"IF(H19=2,1,0)","v":0}]
[18,{"$f":"RAND()","v":0.80766539951339167},"G","La préparation des esches et des amorces avant le début des contrôles pourra être effectué par une tierce personne",true,false,null,null,{"$f":"IF(H20=1,1,0)","v":0}]
[19,{"$f":"RAND()","v":0.12186442208428083},"G","Un pêcheur étranger licencié en France peut disputer une coupe de France de Pêche sportive \"eau douce\" dans n'importe quelle discipline",true,false,null,null,{"$f":"IF(H21=1,1,0)","v":0}]
[20,{"$f":"RAND()","v":0.2937715226533375},"G","Pour participer à un championnat de la catégorie Master, les pêcheurs doivent être âgés au 31 décembre de l'année précédente au minimum de","50 ans","55 ans","66 ans",null,{"$f":"IF(H22=2,1,0)","v":0}]
[21,{"$f":"RAND()","v":0.17505961009689353},"G","A la fin d'une manche le pêcheur peut reprendre la pêche pour essayer une amorce",true,false,null,null,{"$f":"IF(H23=2,1,0)","v":0}]
[22,{"$f":"RAND()","v":0.68424288626232233},"G","En cas d'exæquo dans une manche de championnat le pêcheur placé au plus gros numéro est classé avant",true,false,null,null,{"$f":"IF(H24=2,1,0)","v":0}]
[23,{"$f":"RAND()","v":0.14280357152257517},"G","En cas d'une place non pêchée lors de la première manche,  dans les manches suivantes la place doit être laissée libre",false,true,null,null,{"$f":"IF(H25=1,1,0)","v":0}]
[24,{"$f":"RAND()","v":0.36537352469737217},"G","Pour les concours de pêche le règlement FFPS ed peut être adapté",true,false,null,null,{"$f":"IF(H26=1,1,0)","v":0}]
[25,{"$f":"RAND()","v":0.13565514463963735},"G","La licence sportive peut remplacer la carte de pêche",true,false,null,null,{"$f":"IF(H27=2,1,0)","v":0}]
[26,{"$f":"RAND()","v":8.4481717213308771E-2},"G","La pesée peut se faire en livre",true,false,null,null,{"$f":"IF(H28=2,1,0)","v":0}]
[27,{"$f":"RAND()","v":0.75591767121060682},"G","Les non-licenciés peuvent participer aux qualificatifs départemental et/ou régional sans entrer dans le classement final",true,false,null,null,{"$f":"IF(H29=2,1,0)","v":0}]
[28,{"$f":"RAND()","v":0.88544192079973871},"G","Pour un championnat en 3 manches l'ordre de la grille sera tiré au sort à la fin de la première manche",true,false,null,null,{"$f":"IF(H30=2,1,0)","v":0}]
[29,{"$f":"RAND()","v":0.49827775976736266},"G","Combien de temps avant le signal d'amorçage les contrôles doivent être terminés","1 H  ","30 minutes","10 minutes ",null,{"$f":"IF(H31=2,1,0)","v":0}]
[30,{"$f":"RAND()","v":0.51776015557242772},"G","Dans un championnat national en pêche mixte  quelle est la distance minimale entre deux numéros","6 m","10 m","20 m",null,{"$f":"IF(H32=2,1,0)","v":0}]
[31,{"$f":"RAND()","v":0.17789057593259872},"G","Les capots auront une pénalité de 1 point place",true,false,null,null,{"$f":"IF(H33=2,1,0)","v":0}]
[32,{"$f":"RAND()","v":0.24088824281520393},"G","Est-il possible d'organiser un championnat départemental avec un règlement spécifique (autre que celui de la FFPS ed)","OUI","NON",null,null,{"$f":"IF(H34=2,1,0)","v":0}]
[33,{"$f":"RAND()","v":0.94741185380810411},"G","Un poisson harponné accidentellement sera comptabilisé",true,false,null,null,{"$f":"IF(H35=1,1,0)","v":0}]
[34,{"$f":"RAND()","v":0.39081793530939968},"G","Le pêcheur peut mettre les poissons dans un seau en attendant l'équipe de pesée",true,false,null,null,{"$f":"IF(H36=2,1,0)","v":0}]
[35,{"$f":"RAND()","v":0.15189869062769024},"G","La bourriche peut être mise à l'eau sans contrôle du commissaire",true,false,null,null,{"$f":"IF(H37=2,1,0)","v":0}]
[36,{"$f":"RAND()","v":0.60385235926400205},"G","Si un pêcheur prend un gros poisson ses voisins directs doivent retirer leur ligne de l'eau",true,false,null,null,{"$f":"IF(H38=2,1,0)","v":0}]
[37,{"$f":"RAND()","v":0.15172179164823962},"G","Le classement d'un championnat s'obtient par addition des points places de chaque manche",true,false,null,null,{"$f":"IF(H39=1,1,0)","v":0}]
[38,{"$f":"RAND()","v":0.26202083613750893},"G","La fiche de pesée doit être signée par le pêcheur ou son représentant",true,false,null,null,{"$f":"IF(H40=1,1,0)","v":0}]
[39,{"$f":"RAND()","v":0.85754746232964085},"G","Les pêcheurs doivent obligatoirement se conformer à la règlementation en vigueur sur le parcours (permis de pêche) pour participer à une épreuve officielle de la FFPS eau douce",true,false,null,null,{"$f":"IF(H41=1,1,0)","v":0}]
[40,{"$f":"RAND()","v":4.1844602067314995E-2},"G","Un pêcheur ayant une licence FFPS avec activité principale \"MER' peut participer à un championnat \"Eau Douce\"",true,false,null,null,{"$f":"IF(H42=1,1,0)","v":0}]
[41,{"$f":"RAND()","v":0.86854185260219685},"G","Un pêcheur arrivé après le signal d'amorçage de la 1ère manche d’un championnat peut prendre part à cette manche ",true,false,null,null,{"$f":"IF(H43=2,1,0)","v":0}]
[42,{"$f":"RAND()","v":0.57502308992039275},"G","Après le passage des contrôleurs un pêcheur qui n'a pas assez d'esches peut obtenir un complément par le commissaire de secteur",true,false,null,null,{"$f":"IF(H44=2,1,0)","v":0}]
[43,{"$f":"RAND()","v":0.28854175970183427},"G","Les pêcheurs handicapés doivent s'inscrire auprès de la commission nationale eau douce \"HANDIPÊCHE\"",true,false,null,null,{"$f":"IF(H45=1,1,0)","v":0}]
[44,{"$f":"RAND()","v":0.36970723465356992},"G","En cas d'accident grâve pendant la pêche, la manche sera interrompue et sera définitivement annulée",true,false,null,null,{"$f":"IF(H46=1,1,0)","v":0}]
[45,{"$f":"RAND()","v":0.87302690062381738},"G","Les pêcheurs étrangers résidents en France peuvent participer aux championnats nationaux s'ils sont licenciés en France depuis 5 ans",true,false,null,null,{"$f":"IF(H47=1,1,0)","v":0}]
[46,{"$f":"RAND()","v":0.11250836736571479},"G","Quand la sécurité des pêcheurs ne peut pas être garantie pour cause de conditions météorologiques ou hydrauliques la compétition doit obligatoirement être intérrompue, la compétition pourra reprendre si les conditions s'améliorent ",true,false,null,null,{"$f":"IF(H48=1,1,0)","v":0}]
[47,{"$f":"RAND()","v":0.92784372379150892},"G","Le matériel de pesée doit être contrôlé avant le début des pesées",true,false,null,null,{"$f":"IF(H49=1,1,0)","v":0}]
[48,{"$f":"RAND()","v":0.53034297951348419},"G","En cas de casse d'une canne le pêcheur peut être autorisé à procéder au remplacement",true,false,null,null,{"$f":"IF(H50=1,1,0)","v":0}]
[49,{"$f":"RAND()","v":0.66840878898992206},"G","Les limitations des  esches doivent être notées dans le programme",true,false,null,null,{"$f":"IF(H51=1,1,0)","v":0}]
[50,{"$f":"RAND()","v":0.55442826415533464},"G","L'écho sondeur est autorisé jusqu'au début des contrôles",true,false,null,null,{"$f":"IF(H52=2,1,0)","v":0}]
[51,{"$f":"RAND()","v":8.3949638958150441E-2},"G","Une tierce personne peut installer le matériel dans le box d'un compétiteur qui arrive en retard",true,false,null,null,{"$f":"IF(H53=2,1,0)","v":0}]
[52,{"$f":"RAND()","v":0.69872583592924231},"G","Les pontons mobiles sont autorisés hors de l'eau",true,false,null,null,{"$f":"IF(H54=1,1,0)","v":0}]
[53,{"$f":"RAND()","v":0.62368197533014158},"G","Dans le cas d'un forfait tardif non justifié, moins de 4 semaines avant l'épreuve, le pêcheur devra repartir à zéro",true,false,null,null,{"$f":"IF(H55=1,1,0)","v":0}]
[54,{"$f":"RAND()","v":0.28805135014834238},"G","Dans un championnat, en cas d'absence d'un pêcheur dans un secteur, le(s) dernier(s) du(des) secteur(s) majoritaire(s) marque(nt) le même nombre de points que le nombre total de pêcheurs du secteur plus 1 point",true,false,null,null,{"$f":"IF(H56=2,1,0)","v":0}]
[55,{"$f":"RAND()","v":0.79132112501024465},"G","En cas d'interruption à cause de l'orage, pour une manche de 5 heures la durée minimale pour que la manche soit validée est de","1 H 00","1 H 40","2 H 00",null,{"$f":"IF(H57=3,1,0)","v":0}]
[56,{"$f":"RAND()","v":0.44080682263707027},"G","Si une épreuve est arrêtée par un signal sonore pour cause de mauvais temps le poisson ferré sera comptabilisé",true,false,null,null,{"$f":"IF(H58=2,1,0)","v":0}]
[57,{"$f":"RAND()","v":0.50775524816464224},"G","Pour les championnats nationaux un coach désigné peut rester dans le box du pêcheur",true,false,null,null,{"$f":"IF(H59=1,1,0)","v":0}]
[58,{"$f":"RAND()","v":0.69485839164405394},"G","Quand le règlement local comprend une fenêtre de capture pour les brochets (longueur mini - maxi) ils seront comptabilisé s'ils sont dans la fenêtre",true,false,null,null,{"$f":"IF(H60=2,1,0)","v":0}]
[59,{"$f":"RAND()","v":0.49955979398546568},"G","Les pêcheurs de plus de 55 ans et moins de 65 ans sont des vétérans",true,false,null,null,{"$f":"IF(H61=2,1,0)","v":0}]
[60,{"$f":"RAND()","v":0.86512919274171662},"G","Quand une épreuve est interrompue pour cause d'orage les pêcheurs doivent ranger leur matériel dans les véhicules",true,false,null,null,{"$f":"IF(H62=2,1,0)","v":0}]
[61,{"$f":"RAND()","v":0.86289707147833206},"G","Le coach autorisé dans le box du pêcheur peut l'aider pour démêler une ligne",true,false,null,null,{"$f":"IF(H63=2,1,0)","v":0}]
[62,{"$f":"RAND()","v":0.70151069973162494},"G","Les championnats départementaux peuvent se dérouler sans  respecter les règlements FFPS eau douce",true,false,null,null,{"$f":"IF(H64=2,1,0)","v":0}]
[63,{"$f":"RAND()","v":0.62223958015583658},"G","Quelle est la distance minimum entre une installation électrique et le premier poste de pêche","15 m","25 m","35 m",null,{"$f":"IF(H65=2,1,0)","v":0}]
[64,{"$f":"RAND()","v":9.6413377170855741E-2},"G","A partir de quelle quantité d'esches, celles destinées à l'hameçon, doivent être comprises dans cette quantité","1 L","1,5 L","2 L",null,{"$f":"IF(H66=3,1,0)","v":0}]
[65,{"$f":"RAND()","v":0.46102502123116584},"G","Un championnat peut se dérouler avec une quantité d'esches ou d'amorce libre",true,false,null,null,{"$f":"IF(H67=2,1,0)","v":0}]
[66,{"$f":"RAND()","v":0.55585897922267746},"G","Si un pêcheur casse son manche d'épuisette il peut demander à procéder à son remplacement",true,false,null,null,{"$f":"IF(H68=1,1,0)","v":0}]
[67,{"$f":"RAND()","v":0.41471536136314568},"G","Il est obligatoire d'avoir une licence à jour pour participer à un championnat départemental",true,false,null,null,{"$f":"IF(H69=1,1,0)","v":0}]
[68,{"$f":"RAND()","v":0.92860481121241023},"G","Les esches peuvent être collées sur l'hameçon",true,false,null,null,{"$f":"IF(H70=2,1,0)","v":0}]
[69,{"$f":"RAND()","v":0.21326131722496533},"G","Les poissons classés nuisibles peuvent être conservés dans un seau",true,false,null,null,{"$f":"IF(H71=2,1,0)","v":0}]
[70,{"$f":"RAND()","v":0.15449668867170296},"G","On peut remettre une ligne en action alors que le poisson précèdent est encore dans l'épuisette",true,false,null,null,{"$f":"IF(H72=2,1,0)","v":0}]
[71,{"$f":"RAND()","v":0.98724028104329486},"G","Dans une épreuve de pêche au Feeder, on peut lancer pick-up fermé",true,false,null,null,{"$f":"IF(H73=2,1,0)","v":0}]
[72,{"$f":"RAND()","v":0.70195360243560823},"G","En cas d'orage, une manche peut être interrompue au maximum à 5 reprises",true,false,null,null,{"$f":"IF(H74=2,1,0)","v":0}]
[73,{"$f":"RAND()","v":2.5353464840370599E-2},"G","Un compétiteur peut utiliser une bourriche métallique",true,false,null,null,{"$f":"IF(H75=2,1,0)","v":0}]
[74,{"$f":"RAND()","v":0.11767766823017989},"G","Quand un orage se déclare l'épreuve doit être définitivement annulée",true,false,null,null,{"$f":"IF(H76=2,1,0)","v":0}]
[75,{"$f":"RAND()","v":4.4650368086262993E-2},"G","Après une interuption à cause de l'orage il est interdit de reprendre la compétition",true,false,null,null,{"$f":"IF(H77=2,1,0)","v":0}]
[76,{"$f":"RAND()","v":0.80944947695770197},"G","Les pêcheurs peuvent être autorisés à pénétrer dans l'eau pour désherber leur place",true,false,null,null,{"$f":"IF(H78=1,1,0)","v":0}]
[77,{"$f":"RAND()","v":0.33768123139963835},"G","En cas d'interruption à cause de l'orage, pour une manche de 3 heures la durée minimale pour que la manche soit validée est de ","1 H","1 H 20","0 H 40",null,{"$f":"IF(H79=1,1,0)","v":0}]
[78,{"$f":"RAND()","v":0.2785481608457494},"G","Après la fin des contrôles il est encore possible de tamiser la terre",true,false,null,null,{"$f":"IF(H80=2,1,0)","v":0}]
[79,{"$f":"RAND()","v":0.70293229791531397},"G","Pour le piquetage d'une épreuve sous règlement FFPSed le plus petit numéro en regardant l'eau est placé","à droite","à gauche","Dans le sens du courrant",null,{"$f":"IF(H81=2,1,0)","v":0}]
[80,{"$f":"RAND()","v":0.3682798775920878},"G","Quand les box ne sont pas délimités  de quelle distance en % (gauche et droite du numéro)  peut se déplacer le concurrent",0.1,0.2,0.4,null,{"$f":"IF(H82=2,1,0)","v":0}]
[81,{"$f":"RAND()","v":7.5913715351482169E-2},"G","Si un pêcheur capture un gros poisson et que celui-ci sort de la zone en aucun cas il ne sera comptabilisé",true,false,null,null,{"$f":"IF(H83=2,1,0)","v":0}]
[82,{"$f":"RAND()","v":0.86938117867291231},"G","Un championnat organisé en 2 manches peut être organisé en 3 secteurs",true,false,null,null,{"$f":"IF(H84=2,1,0)","v":0}]
[83,{"$f":"RAND()","v":0.30802271520574032},"G","La tare de la balance de pesée doit être faite avant chaque pesée",true,false,null,null,{"$f":"IF(H85=1,1,0)","v":0}]
[84,{"$f":"RAND()","v":0.65944261279527328},"G","Quand la limite des box est matérialisée de quelle distance en % (gauche et droite du numéro)  peut se déplacer le concurrent",0.1,"toute la zone",0.6,null,{"$f":"IF(H86=2,1,0)","v":0}]
[85,{"$f":"RAND()","v":8.9267865440250227E-2},"G","Les pêcheurs avec des petits poissons dont le poids ne s'affiche pas sur la balance sont classés après les pêcheurs classés au poids",true,false,null,null,{"$f":"IF(H87=2,1,0)","v":0}]
[86,{"$f":"RAND()","v":4.6546161369752981E-2},"G","Si le poisson sort du ring et accroche la ligne d'un voisin, il comptera si le pêcheur peut démêler sa ligne après l'épuisage",true,false,null,null,{"$f":"IF(H88=2,1,0)","v":0}]
[87,{"$f":"RAND()","v":0.36686566706179302},"G","Dans un championnat en cas d'égalité des points places, le premier départage se fait par le plus grand poids obtenu dans une manche",true,false,null,null,{"$f":"IF(H89=2,1,0)","v":0}]
[88,{"$f":"RAND()","v":0.59729590512930697},"G","En championnat, en cas d'égalité de poids dans un secteur les pêcheurs marqueront la moyenne des points places des exæquo",true,false,null,null,{"$f":"IF(H90=1,1,0)","v":0}]
[89,{"$f":"RAND()","v":1.0473079085662196E-3},"G","En cas de prise d'un très gros poisson il peut être pesé et remis à l'eau par un organisateur pendant l'épreuve",true,false,null,null,{"$f":"IF(H91=1,1,0)","v":0}]
[90,{"$f":"RAND()","v":0.59443995540037142},"G","Le têtard (larve de grenouille) congelé est autorisé à l'hameçon",true,false,null,null,{"$f":"IF(H92=2,1,0)","v":0}]
[91,{"$f":"RAND()","v":0.23848027283417206},"G","En cas d'absence d'un pêcheur dans une épreuve par équipe,  il sera classé dernier de son secteur",true,false,"L'EQUIPE N'EST PAS CLASSEE",null,{"$f":"IF(H93=3,1,0)","v":0}]
[92,{"$f":"RAND()","v":0.61607079937057629},"G","A la fin d'une manche le pêcheur peut jeter à l'eau son reste d'amorce",true,false,null,null,{"$f":"IF(H94=2,1,0)","v":0}]
[93,{"$f":"RAND()","v":4.1566735542032274E-2},"G","Les poissons chats doivent être conservés dans un seau avec de l'eau",true,false,null,null,{"$f":"IF(H95=2,1,0)","v":0}]
[]
[94,{"$f":"RAND()","v":0.81713653116318896},"M","Combien doit-il y avoir de personnes dans le jury d'une épreuve",2,3,4,null,{"$f":"IF(H97=2,1,0)","v":0}]
[95,{"$f":"RAND()","v":0.2779515288294051},"M","Quant la température dépasse les 30 °C, une \"pause fraîcheur\" est obligatoire elle durera","5 mn","10 mn ","20 mn",null,{"$f":"IF(H98=2,1,0)","v":0}]
[96,{"$f":"RAND()","v":0.62674109104867892},"M","Quelle longueur maximale de canne au coup peut être utilisée dans un championnat de la catégorie Vétéran","10 m","13 m","11,50 m",null,{"$f":"IF(H99=3,1,0)","v":0}]
[97,{"$f":"RAND()","v":0.21173753328264122},"M","Dans la coupe de France Masters et Vétérans V1, V2 et V3 la pêche au moulinet est autorisée",true,false,null,null,{"$f":"IF(H100=2,1,0)","v":0}]
[98,{"$f":"RAND()","v":0.64381547337741118},"M","Quel temps minimum de préparation doit être accordé pour un championnat national","1 h 00","2 h 00","3 h 00",null,{"$f":"IF(H101=2,1,0)","v":0}]
[99,{"$f":"RAND()","v":8.8887619515688909E-2},"M","Pour une manche de championnat d'une durée de plus de 5 heures la quantité d'amorce peut être libre",true,false,null,null,{"$f":"IF(H102=2,1,0)","v":0}]
[100,{"$f":"RAND()","v":0.66432088627692265},"M","Une équipe incomplète peut être admise dans un championnat des clubs",true,false,null,null,{"$f":"IF(H103=2,1,0)","v":0}]
[101,{"$f":"RAND()","v":0.27582821845472261},"M","Quelle longueur maximale de canne au coup peut être utilisée dans un championnat de la catégorie Senior","11,50 m","13,00 m","14,50 m",null,{"$f":"IF(H104=2,1,0)","v":0}]
[102,{"$f":"RAND()","v":0.18002851936572062},"M","Les vers de vase artificiels sont autorisés à l'hameçon",true,false,null,null,{"$f":"IF(H105=2,1,0)","v":0}]
[103,{"$f":"RAND()","v":0.37174666635670961},"M","Quelle longueur maximale de canne au coup peut être utilisée dans la catégorie U25","11,50 m","13 m","14, 50 m",null,{"$f":"IF(H106=2,1,0)","v":0}]
[104,{"$f":"RAND()","v":0.81341277704138948},"M","Si le fouillis est autorisé, le pêcheur peut le remplacer par des asticots pour la même quantité",true,false,null,null,{"$f":"IF(H107=1,1,0)","v":0}]
[105,{"$f":"RAND()","v":9.9655773298393036E-2},"M","Quelle longueur maximale de canne au coup peut être utilisée dans un championnat de la catégorie U15","8 m","10 m","11,50 m",null,{"$f":"IF(H108=2,1,0)","v":0}]
[106,{"$f":"RAND()","v":5.6697401223417598E-2},"M","Dans une manche de championnat quand il s'agit de pêche d'ablettes le classement peut se faire au nombre de poissons",true,false,null,null,{"$f":"IF(H109=2,1,0)","v":0}]
[107,{"$f":"RAND()","v":0.87835399020227578},"M","Quelle longueur maximale de canne au coup peut être utilisée dans un championnat de la catégorie Féminine","10 m","11,50 m","13 m",null,{"$f":"IF(H110=2,1,0)","v":0}]
[108,{"$f":"RAND()","v":0.60713415870858667},"M","Dans les championnats corporatifs la longueur des cannes est limitée à 8 mètres",true,false,null,null,{"$f":"IF(H111=2,1,0)","v":0}]
[109,{"$f":"RAND()","v":0.71459009369267212},"M","Pour le rappel à la coupelle les boules d'amorce peuvent être serrées à deux mains",true,false,null,null,{"$f":"IF(H112=1,1,0)","v":0}]
[110,{"$f":"RAND()","v":0.14087896472910943},"M","Pour le sondage il n'y a pas de longueur limitée pour les cannes au coup",true,false,null,null,{"$f":"IF(H113=2,1,0)","v":0}]
[111,{"$f":"RAND()","v":0.91395650874631784},"M","Quelle longueur maximale de canne au coup peut être utilisée dans un championnat de la catégorie U20","10 m","11, 50 m","13 m",null,{"$f":"IF(H114=2,1,0)","v":0}]
[112,{"$f":"RAND()","v":0.95209946472084062},"M","En pêche mixte, les esches doivent être enfilées sur l'hameçon",true,false,null,null,{"$f":"IF(H115=1,1,0)","v":0}]
[113,{"$f":"RAND()","v":0.63556716867798102},"M","Pour la pêche au moulinet les boules de rappel pourront être confectionnées à deux mains",true,false,null,null,{"$f":"IF(H116=2,1,0)","v":0}]
[114,{"$f":"RAND()","v":6.9021974495548033E-2},"M","Une deuxième canne au coup servant de repère peut être laissée sur le support pendant la pêche",true,false,null,null,{"$f":"IF(H117=2,1,0)","v":0}]
[115,{"$f":"RAND()","v":0.31589768586531719},"M","Le nombre de kits en attente est limité à 7 par pêcheur",true,false,null,null,{"$f":"IF(H118=2,1,0)","v":0}]
[116,{"$f":"RAND()","v":0.17875120586837145},"M","Pour un championnat le classement aux points (5+1) est autorisé si c'est indiqué dans le programme",true,false,null,null,{"$f":"IF(H119=2,1,0)","v":0}]
[117,{"$f":"RAND()","v":0.55105741613937875},"M","Le coach peut monter les lignes sur les kits dans le box jusqu'au début des contrôles dans la catégorie des seniors",true,false,null,null,{"$f":"IF(H120=2,1,0)","v":0}]
[118,{"$f":"RAND()","v":0.3022785651971075},"M","Dans un championnat de pêche exclusivement à l'anglaise la distance minimum de pêche par rapport au  bord est de","10 m","15 m","25 m",null,{"$f":"IF(H121=2,1,0)","v":0}]
[119,{"$f":"RAND()","v":4.1614083909098487E-2},"M","Pour les épreuves de pêche mixte le flotteur est obligatoire",true,false,null,null,{"$f":"IF(H122=1,1,0)","v":0}]
[120,{"$f":"RAND()","v":0.52545152012304264},"M","Quelle longueur maximale de canne au coup peut être utilisée dans la catégorie Handipêche","10 m","11,50 m","12,00 m",null,{"$f":"IF(H123=2,1,0)","v":0}]
[121,{"$f":"RAND()","v":0.32946356068516436},"M","Quelle est la longueur maximale de canne au coup pouvant être utilisée dans un championnat de la catégorie Master","10 m","11,50 m","12,00 m",null,{"$f":"IF(H124=2,1,0)","v":0}]
[122,{"$f":"RAND()","v":0.55713154352713046},"M","En pêche mixte les montages dit  \"en dérivation\" sont autorisés",true,false,null,null,{"$f":"IF(H125=2,1,0)","v":0}]
[123,{"$f":"RAND()","v":0.60406701163441678},"M","Pour la pêche à l'anglaise un repère flottant peut être laissé en place pendant toute la manche",true,false,null,null,{"$f":"IF(H126=2,1,0)","v":0}]
[124,{"$f":"RAND()","v":0.14660740229514635},"M","Combien (en %) y a-t-il de maintenu à la première division nationale en pêche mixte",0.2,0.4,0.6,null,{"$f":"IF(H127=2,1,0)","v":0}]
[125,{"$f":"RAND()","v":0.21457926257271009},"M","Pour les coupes de France mixte, duo et vétérans la pêche au feeder est autorisée",true,false,null,null,{"$f":"IF(H128=2,1,0)","v":0}]
[126,{"$f":"RAND()","v":0.72906231185248216},"M","Quelle longueur maximale de canne au coup peut être utilisée dans les épreuves Corporatives","9 m","10 m","11,50 m",null,{"$f":"IF(H129=3,1,0)","v":0}]
[127,{"$f":"RAND()","v":0.64280523987827642},"M","Dans le cas de changement de CR, Un pêcheur de niveau régional conservera sa place dans son nouveau CR",true,false,null,null,{"$f":"IF(H130=2,1,0)","v":0}]
[128,{"$f":"RAND()","v":0.28543392499706877},"M","Dans le cas de vent violent le pêcheur est autorisé à plonger le scion dans l'eau",true,false,null,null,{"$f":"IF(H131=1,1,0)","v":0}]
[129,{"$f":"RAND()","v":0.29187820909380302},"M","La coupe de France DUO est organisée pour des équipes de","3 pêcheurs","5 pêcheurs","2 pêcheurs",null,{"$f":"IF(H132=3,1,0)","v":0}]
[130,{"$f":"RAND()","v":7.2842925218548515E-2},"M","Un  descendant d'un championnat régional peut être muté dans un autre département que celui d’où il vient",true,false,null,null,{"$f":"IF(H133=2,1,0)","v":0}]
[131,{"$f":"RAND()","v":0.25089242040208271},"M","Pendant l'amorçage de rappel à la coupelle la ligne peut rester dans l'eau",true,false,null,null,{"$f":"IF(H134=2,1,0)","v":0}]
[132,{"$f":"RAND()","v":0.28393386615595784},"M","Dans les championnats de France des clubs de pêche coup et Feeder, le remplaçant inscrit sur la feuille d'engagement peut être autorisé à entrer aucours d'une manche en cas de maladie ou accident d'un des équipiers.",true,false,null,null,{"$f":"IF(H135=1,1,0)","v":0}]
[133,{"$f":"RAND()","v":0.1606459931286629},"M","Pour les épreuves corporatives la pêche au moulinet est interdite",true,false,null,null,{"$f":"IF(H136=1,1,0)","v":0}]
[134,{"$f":"RAND()","v":0.89710997005106174},"M","La mini coupelle de scion installée à demeure est interdite",true,false,null,null,{"$f":"IF(H137=2,1,0)","v":0}]
[135,{"$f":"RAND()","v":0.48962041709182469},"M","Les championnats \"mixte et moulinet\" première et deuxième division nationales se déroulent obligatoirement en 3 manches sur 3 jours",true,false,null,null,{"$f":"IF(H138=1,1,0)","v":0}]
[136,{"$f":"RAND()","v":0.87749448235301275},"M","Dans les championnats en pêche mixte, la bague à pellet est autorisée",true,false,null,null,{"$f":"IF(H139=2,1,0)","v":0}]
[]
[137,{"$f":"RAND()","v":0.30354217494053159},"O","Si la quantité totale d'esches animales autorisées est égale à 2 litres les esches pour l'hameçon sont limitées à 1/4 de litre",true,false,null,null,{"$f":"IF(H141=2,1,0)","v":0}]
[138,{"$f":"RAND()","v":0.66557706392818095},"O","Un repère flottant pour l'amorçage peut être laissé en place pendant toute l'épreuve",true,false,null,null,{"$f":"IF(H142=2,1,0)","v":0}]
[139,{"$f":"RAND()","v":0.33630958626407448},"O","Pour participer aux championnats corporatifs la validation médicale n'est pas obligatoire",true,false,null,null,{"$f":"IF(H143=1,1,0)","v":0}]
[140,{"$f":"RAND()","v":4.3484966266332803E-2},"O","Dans les compétitions corporatives un pêcheur est dit extérieur quand il est adhérent dans plusieurs clubs corporatifs",true,false,null,null,{"$f":"IF(H144=2,1,0)","v":0}]
[141,{"$f":"RAND()","v":0.27752759218119838},"O","Le fouillis peut être utilisé dans les championnats carpe au coup",true,false,null,null,{"$f":"IF(H145=2,1,0)","v":0}]
[]
[142,{"$f":"RAND()","v":0.80007267466613408},"P","Pour les championnats le nombre de boules d'amorce est limité à",12,24,"Pas de limite",null,{"$f":"IF(H147=3,1,0)","v":0}]
[143,{"$f":"RAND()","v":0.24146097198101646},"P","Un pêcheur de nationalité Belge peut être sacré champion de France dans la catégorie \"Carpe au coup\"",true,false,null,null,{"$f":"IF(H148=2,1,0)","v":0}]
[144,{"$f":"RAND()","v":0.35496075086024481},"P","Pour la coupe de France carpe au coup l'amorçage à la main avec des boules confectionnées à une seule main est autorisé",true,false,null,null,{"$f":"IF(H149=2,1,0)","v":0}]
[145,{"$f":"RAND()","v":0.96848748485638636},"P","Dans un championnat carpe au coup les poissons chats sont comptabilisés",true,false,null,null,{"$f":"IF(H150=2,1,0)","v":0}]
[146,{"$f":"RAND()","v":0.31237967094024854},"P","Dans les compétitions \"carpe au coup\" il est interdit de lancer des boules d'amorce à la main",true,false,null,null,{"$f":"IF(H151=1,1,0)","v":0}]
[147,{"$f":"RAND()","v":0.91763628746939696},"P","Pour les concours carpe et feeder, le poids maximum autorisé dans une même bourriche est limité à","20 kilos","25 kilos","30 kilos",null,{"$f":"IF(H152=2,1,0)","v":0}]
[148,{"$f":"RAND()","v":0.42350531343894993},"P","Dans un championnat de pêche de carpe au coup, la pêche à l'anglaise est autorisée",true,false,null,null,{"$f":"IF(H153=2,1,0)","v":0}]
[149,{"$f":"RAND()","v":0.89367305921346829},"P","Pour la carpe au coup l'épuisage est obligatoire",true,false,null,null,{"$f":"IF(H154=1,1,0)","v":0}]
[150,{"$f":"RAND()","v":0.88285543503741948},"P","Dans un championnat ou seule la pêche à l'anglaise est autorisée l'amorçage ne peut se pratiquer qu'à la Fronde",false,true,null,null,{"$f":"IF(H155=2,1,0)","v":0}]
[null,null,null,null,null,null,null,null,{"$f":"SUM(I2:I155)","v":0}]

{"sheet":"Affichage","index":1,"n_rows":41,"n_cols":8,"rows_kept":41,"cut":false,"hidden":false,"merged":[[0,1,0,5]]}
["NOTE (1 ou 0)","Pour obtenir une nouvelle liste de questions tapez simultanément sur les touches        ctrl  et  m",null,null,null,null,"Indiquez le                  N° de la réponse (1 - 2 ou 3)"]
[null,1,"Pour la pêche exclusivement au feeder un repère flottant est autorisé pour l'amorçage",true,false,null,null,{"$f":"IF(G2=2,1,0)","v":0}]
[null,2,"La pêche au feeder peut se dérouler sans moulinet sur la canne",true,false,null,null,{"$f":"IF(G3=2,1,0)","v":0}]
[null,3,"Pour la pêche exclusivement au feeder il est autorisé de lancer des boules de rappel à la fronde",true,false,null,null,{"$f":"IF(G4=2,1,0)","v":0}]
[null,4,"Dans le cas d'un forfait tardif non justifié, moins de 4 semaines avant l'épreuve, le pêcheur devra repartir à zéro",true,false,null,null,{"$f":"IF(G5=1,1,0)","v":0}]
[null,5,"Les pêcheurs doivent obligatoirement se conformer à la règlementation en vigueur sur le parcours (permis de pêche) pour participer à une épreuve officielle de la FFPS eau douce",true,false,null,null,{"$f":"IF(G6=1,1,0)","v":0}]
[null,6,"Après la fin des contrôles il est encore possible de tamiser la terre",true,false,null,null,{"$f":"IF(G7=2,1,0)","v":0}]
[null,7,"Un championnat peut se dérouler avec une quantité d'esches ou d'amorce libre",true,false,null,null,{"$f":"IF(G8=2,1,0)","v":0}]
[null,8,"Pour une grande épreuve en individuel, il est possible de procéder à un tirage aléatoire à l'aide d'un logiciel adapté",true,false,null,null,{"$f":"IF(G9=1,1,0)","v":0}]
[null,9,"La bourriche peut être mise à l'eau sans contrôle du commissaire",true,false,null,null,{"$f":"IF(G10=2,1,0)","v":0}]
[null,10,"Les pontons mobiles sont autorisés hors de l'eau",true,false,null,null,{"$f":"IF(G11=1,1,0)","v":0}]
[null,11,"Les poissons chats doivent être conservés dans un seau avec de l'eau",true,false,null,null,{"$f":"IF(G12=2,1,0)","v":0}]
[null,12,"Un compétiteur peut utiliser une bourriche métallique",true,false,null,null,{"$f":"IF(G13=2,1,0)","v":0}]
[null,13,"Pour le piquetage d'une épreuve sous règlement FFPSed le plus petit numéro en regardant l'eau est placé","à droite","à gauche","Dans le sens du courrant",null,{"$f":"IF(G14=2,1,0)","v":0}]
[null,14,"En cas d'une place non pêchée lors de la première manche,  dans les manches suivantes la place doit être laissée libre",false,true,null,null,{"$f":"IF(G15=1,1,0)","v":0}]
[null,15,"Quand la limite des box est matérialisée de quelle distance en % (gauche et droite du numéro)  peut se déplacer le concurrent",0.1,"toute la zone",0.6,null,{"$f":"IF(G16=2,1,0)","v":0}]
[null,16,"Une tierce personne peut installer le matériel dans le box d'un compétiteur qui arrive en retard",true,false,null,null,{"$f":"IF(G17=2,1,0)","v":0}]
[null,17,"En cas d'orage, une manche peut être interrompue au maximum à 5 reprises",true,false,null,null,{"$f":"IF(G18=2,1,0)","v":0}]
[null,18,"Un pêcheur arrivé après le signal d'amorçage de la 1ère manche d’un championnat peut prendre part à cette manche ",true,false,null,null,{"$f":"IF(G19=2,1,0)","v":0}]
[null,19,"En championnat, en cas d'égalité de poids dans un secteur les pêcheurs marqueront la moyenne des points places des exæquo",true,false,null,null,{"$f":"IF(G20=1,1,0)","v":0}]
[null,20,"Après un arret à cause de l'orage il est interdit de reprendre la compétition",true,false,null,null,{"$f":"IF(G21=2,1,0)","v":0}]
[null,21,"Le coach autorisé dans le box du pêcheur peut l'aider pour démêler une ligne",true,false,null,null,{"$f":"IF(G22=2,1,0)","v":0}]
[null,22,"Quand la sécurité des pêcheurs ne peut pas être garantie pour cause de conditions météorologiques ou hydrauliques la compétition doit obligatoirement être intérrompue",true,false,null,null,{"$f":"IF(G23=1,1,0)","v":0}]
[null,23,"Si un pêcheur casse son manche d'épuisette il peut demander à procéder à son remplacement",true,false,null,null,{"$f":"IF(G24=1,1,0)","v":0}]
[null,24,"La préparation des esches et des amorces avant le début des contrôles pourra être effectué par une tierce personne",true,false,null,null,{"$f":"IF(G25=1,1,0)","v":0}]
[null,25,"Les limitations des  esches doivent être notées dans le programme",true,false,null,null,{"$f":"IF(G26=1,1,0)","v":0}]
[null,26,"Le coach peut monter les lignes sur les kits dans le box jusqu'au début des contrôles dans la catégorie des seniors",true,false,null,null,{"$f":"IF(G27=2,1,0)","v":0}]
[null,27,"Une deuxième canne au coup servant de repère peut être laissée sur le support pendant la pêche",true,false,null,null,{"$f":"IF(G28=2,1,0)","v":0}]
[null,28,"Quelle longueur maximale de canne au coup peut être utilisée dans un championnat de la catégorie Senior","11,50 m","13,00 m","14,50 m",null,{"$f":"IF(G29=2,1,0)","v":0}]
[null,29,"Quelle longueur maximale de canne au coup peut être utilisée dans un championnat de la catégorie U15","8 m","10 m","11,50 m",null,{"$f":"IF(G30=2,1,0)","v":0}]
[null,30,"Le nombre de kits en attente est limité à 7 par pêcheur",true,false,null,null,{"$f":"IF(G31=2,1,0)","v":0}]
[null,31,"Quelle est la longueur maximale de canne au coup pouvant être utilisée dans un championnat de la catégorie Master","10 m","11,50 m","12,00 m",null,{"$f":"IF(G32=2,1,0)","v":0}]
[null,32,"Pour la pêche au moulinet les boules de rappel pourront être confectionnées à deux mains",true,false,null,null,{"$f":"IF(G33=2,1,0)","v":0}]
[null,33,"Les vers de vase artificiels sont autorisés à l'hameçon",true,false,null,null,{"$f":"IF(G34=2,1,0)","v":0}]
[null,34,"Quelle longueur maximale de canne au coup peut être utilisée dans un championnat de la catégorie Féminine","10 m","11,50 m","13 m",null,{"$f":"IF(G35=2,1,0)","v":0}]
[null,35,"Un  descendant d'un championnat régional peut être muté dans un autre département que celui d’où il vient",true,false,null,null,{"$f":"IF(G36=2,1,0)","v":0}]
[null,36,"Dans les championnats de France des clubs de pêche coup et Feeder, le remplaçant inscrit sur la feuille d'engagement peut être autorisé à entrer aucours d'une manche en cas de maladie ou accident d'un des équipiers.",true,false,null,null,{"$f":"IF(G37=1,1,0)","v":0}]
[null,37,"Si la quantité totale d'esches animales autorisées est égale à 2 litres les esches pour l'hameçon sont limitées à 1/4 de litre",true,false,null,null,{"$f":"IF(G38=2,1,0)","v":0}]
[null,38,"Pour participer aux championnats corporatifs la validation médicale n'est pas obligatoire",true,false,null,null,{"$f":"IF(G39=1,1,0)","v":0}]
[null,39,"Pour les championnats le nombre de boules d'amorce est limité à",12,24,"Pas de limite",null,{"$f":"IF(G40=3,1,0)","v":0}]
[null,40,"Pour la carpe au coup l'épuisage est obligatoire",true,false,null,null,{"$f":"IF(G41=1,1,0)","v":0}]

{"sheet":"Feuil5","index":2,"n_rows":13,"n_cols":8,"rows_kept":13,"cut":false,"hidden":true,"merged":[]}
[]
[]
[]
[null,null,"F",11,11,null,{"$f":"D4*$G$9","v":2.838709677419355},3]
[null,null,"G",{"$f":"E5-E4","v":87},98,null,{"$f":"D5*$G$9","v":22.451612903225804},22]
[null,null,"M",{"$f":"E6-E5","v":43},141,null,{"$f":"D6*$G$9","v":11.096774193548386},11]
[null,null,"O",{"$f":"E7-E6","v":5},146,null,{"$f":"D7*$G$9","v":1.2903225806451613},2]
[null,null,"P",{"$f":"E8-E7","v":9},155,null,{"$f":"D8*$G$9","v":2.32258064516129},2]
[null,null,null,{"$f":"SUM(D4:D8)","v":155},{"$f":"+D8+D9","v":164},null,{"$f":"40/D9","v":0.25806451612903225}]
[null,null,null,null,{"$f":"+D9+D10","v":155},null,null,{"$f":"SUM(H4:H9)","v":40}]
[null,null,null,null,{"$f":"+D10+D11","v":0}]
[null,null,null,null,{"$f":"+D11+D12","v":0}]
[null,null,null,null,{"$f":"+D12+D13","v":0}]